bitfinex/quotes_BTCUSD_20251217
["timestamp","ask_amount","ask_price","bid_price","bid_amount"]
[1765990159937,0.0907,86872.0,86851.0,0.01151397]
[1765990160260,0.67972,86878.0,86851.0,0.00161]
[1765990160261,0.0907,86868.0,86851.0,0.00161]
[1765990160445,0.0907,86866.0,86851.0,0.00161]
[1765990160872,1.0,86863.0,86843.0,0.01856]
[1765990161098,0.0907,86868.0,86851.0,0.00161]
[1765990161292,0.01856,86879.0,86857.0,0.24177551]
[1765990161293,1.0,86878.0,86857.0,0.24177551]
[1765990161505,0.0907,86877.0,86862.0,0.01151251]
[1765990161727,0.0250199,86895.0,86862.0,0.00161]
[1765990161900,1.0,86889.0,86864.0,0.01151224]
[1765990162151,0.01856,86891.0,86864.0,0.01151224]
[1765990162152,1.0,86890.0,86864.0,0.01312224]
[1765990162468,1.0,86898.0,86869.0,0.05001839]
[1765990162651,1.0,86898.0,86870.0,0.03007145]
[1765990162826,2.16184,86897.0,86871.0,0.01351176]
[1765990163039,2.16184,86897.0,86860.0,0.15223116]
[1765990163040,0.48212,86884.0,86861.0,0.01856]
[1765990163238,1.0,86894.0,86864.0,0.01351176]
[1765990163441,1.0,86894.0,86872.0,0.01151118]
[1765990163653,0.0907,86891.0,86872.0,0.00161]
[1765990163974,0.483,86889.0,86872.0,0.00161]
[1765990164133,0.0907,86894.0,86872.0,0.00161]
[1765990164330,0.67972,86898.0,86872.0,0.00161]
[1765990164331,0.6315,86893.0,86877.0,0.01151052]
[1765990164533,0.01856,86902.0,86880.0,0.23020023]
[1765990164801,0.4671,86901.0,86880.0,0.00161]
[1765990164965,0.7454,86899.0,86880.0,0.00161]
[1765990165176,0.67972,86901.0,86880.0,0.00161]
[1765990165177,0.9373,86901.0,86880.0,0.00161]
[1765990165533,0.48212,86905.0,86880.0,0.00161]
[1765990165732,0.01150761,86899.0,86880.0,0.00161]
[1765990165976,0.01150761,86899.0,86861.0,0.0498]
[1765990165977,1.23017313,86892.0,86861.0,0.0498]
[1765990166178,0.01151065,86876.0,86861.0,0.00161]
[1765990166493,1.2417187,86878.0,86853.0,0.01856]
[1765990166671,1.01151079,86875.0,86836.0,0.02502772]
[1765990166867,1.0,86872.0,86844.0,0.00161]
[1765990167268,0.78721308,86872.0,86844.0,0.00161]
[1765990167467,1.0,86872.0,86844.0,0.00161]
[1765990167642,1.0,86872.0,86845.0,0.01856]
[1765990167839,0.2329,86869.0,86849.0,0.01151423]
[1765990168119,0.2766,86865.0,86849.0,0.00161]
[1765990168344,1.0,86870.0,86849.0,0.00161]
[1765990168551,1.16184,86866.0,86855.0,0.01151344]
[1765990168753,0.0907,86871.0,86849.0,0.00161]
[1765990168754,0.67972,86871.0,86853.0,3.89e-06]
[1765990168940,0.48212,86865.0,86851.0,0.01856]
[1765990169148,0.0907,86869.0,86860.0,0.01151277]
[1765990169149,0.67972,86864.0,86860.0,0.01151277]
[1765990169361,0.0907,86869.0,86863.0,0.23024713]
[1765990169609,0.0907,86869.0,86860.0,0.01351176]
[1765990169804,0.77042,86869.0,86855.0,0.01151344]
[1765990170013,0.0907,86868.0,86860.0,0.01351176]
[1765990170388,0.0907,86868.0,86860.0,0.01551176]
[1765990170595,0.0907,86868.0,86860.0,0.01351176]
[1765990171131,1.16184,86881.0,86854.0,0.01151357]
[1765990171327,0.0907,86874.0,86851.0,0.01856]
[1765990171557,0.57282,86873.0,86851.0,0.01856]
[1765990171769,0.48212,86883.0,86852.0,0.01151383]
[1765990171975,0.24170192,86884.0,86850.0,0.24179522]
[1765990171976,0.77042,86879.0,86851.0,0.01151397]
[1765990172196,0.48212,86873.0,86852.0,0.01151383]
[1765990172417,0.48212,86868.0,86852.0,0.01151383]
[1765990172629,0.0907,86866.0,86853.0,0.2417877]
[1765990172833,0.0907,86866.0,86860.0,0.002]
[1765990173041,0.0907,86866.0,86857.0,0.01151317]
[1765990173240,0.0907,86866.0,86858.0,0.01151304]
[1765990173438,0.0907,86866.0,86856.0,0.23026376]
[1765990173674,0.67972,86867.0,86854.0,0.01151357]
[1765990173675,0.0907,86867.0,86854.0,0.24178462]
[1765990173884,0.09231287,86867.0,86846.0,1.76e-06]
[1765990174099,0.09231287,86867.0,86825.0,0.47902]
[1765990174100,0.0907,86859.0,86838.0,0.01151569]
[1765990174315,0.0907,86859.0,86833.0,0.01151635]
[1765990174316,0.0907,86855.0,86833.0,0.01151635]
[1765990174620,1.16184,86850.0,86818.0,0.01351176]
[1765990174838,0.57282,86842.0,86826.0,0.2303454]
[1765990175067,0.77042,86835.0,86826.0,0.01151728]
[1765990175244,0.0907,86833.0,86827.0,0.01151715]
[1765990175449,0.0907,86833.0,86832.0,0.01351176]
[1765990175673,0.00161287,86842.0,86840.0,0.23030861]
[1765990175810,0.01856,86847.0,86841.0,0.01151529]
[1765990176018,0.0907,86848.0,86842.0,0.24181773]
[1765990176215,0.0907,86848.0,86840.0,0.24182356]
[1765990176423,0.05707459,86868.0,86830.0,0.7246157]
[1765990176424,0.02813402,86868.0,86855.0,0.01151344]
[1765990176627,1.16184,86867.0,86854.0,0.01151357]
[1765990176834,0.67972,86867.0,86861.0,4.4e-06]
[1765990177033,0.00025289,86889.0,86861.0,4.4e-06]
[1765990177034,0.01856,86884.0,86861.0,4.4e-06]
[1765990177232,0.48212,86880.0,86859.0,0.01151291]
[1765990177434,0.48212,86875.0,86855.0,2.9e-07]
[1765990177648,0.48212,86875.0,86867.0,0.23023546]
[1765990177649,0.67972,86873.0,86867.0,0.23023546]
[1765990177880,0.00161287,86875.0,86851.0,0.05001839]
[1765990177881,0.00161287,86875.0,86868.0,0.01351176]
[1765990178051,0.00161287,86875.0,86868.0,0.02502347]
[1765990178252,0.01856,86884.0,86875.0,0.01151079]
[1765990178482,0.01054009,86883.0,86876.0,6.5e-07]
[1765990178684,0.01856,86884.0,86876.0,6.5e-07]
[1765990178903,0.00025289,86889.0,86883.0,0.01150973]
[1765990179140,0.00025289,86889.0,86882.0,0.01351176]
[1765990179301,0.00025289,86889.0,86878.0,3.9e-07]
[1765990179302,0.0907,86885.0,86878.0,3.9e-07]
[1765990179477,0.0907,86885.0,86882.0,0.01151162]
[1765990179850,0.67972,86882.0,86878.0,3.9e-07]
[1765990180057,0.67972,86882.0,86854.0,0.47902]
[1765990180058,0.00161287,86882.0,86868.0,0.01151451]
[1765990180251,0.48373287,86882.0,86873.0,0.23022026]
[1765990180465,0.67972,86881.0,86868.0,2.8e-06]
[1765990180650,0.67972,86881.0,86860.0,0.01151277]
[1765990180651,0.6829,86875.0,86861.0,0.2302504]
[1765990180917,0.6829,86873.0,86866.0,1.76e-06]
[1765990181092,0.6829,86873.0,86862.0,0.01351176]
[1765990181093,0.51337,86873.0,86862.0,0.01351176]
[1765990181294,0.51337,86873.0,86862.0,1.76e-06]
[1765990181295,0.6829,86872.0,86862.0,1.76e-06]
[1765990181712,0.6829,86872.0,86852.0,0.2802932]
[1765990181713,0.51337,86866.0,86844.0,0.0115149]
[1765990181850,0.6829,86864.0,86852.0,0.01351176]
[1765990182038,0.0907,86860.0,86844.0,0.0115149]
[1765990182281,0.0907,86860.0,86838.0,0.01856]
[1765990182282,0.0907,86862.0,86848.0,0.01151436]
[1765990182498,0.0907,86859.0,86843.0,0.23029962]
[1765990182706,0.0907,86859.0,86851.0,0.01151397]
[1765990182919,0.0907,86859.0,86850.0,0.01351176]
[1765990183280,0.0907,86859.0,86851.0,1.76e-06]
[1765990183414,0.0907,86865.0,86855.0,0.01151344]
[1765990183615,0.0907,86865.0,86851.0,1.76e-06]
[1765990183616,0.0907,86865.0,86861.0,0.01151264]
[1765990183840,0.0907,86865.0,86860.0,0.01151277]
[1765990183841,0.0907,86865.0,86862.0,0.01151251]
[1765990184240,0.6829,86895.0,86863.0,0.47987]
[1765990184461,0.01053319,86880.0,86873.0,0.24373101]
[1765990184696,2.87e-06,86881.0,86874.0,0.24172879]
[1765990184909,2.87e-06,86881.0,86860.0,1.1859257]
[1765990184910,0.51337,86879.0,86861.0,0.23025099]
[1765990185112,2.87e-06,86881.0,86861.0,0.23025099]
[1765990185113,0.0907,86877.0,86861.0,0.23025099]
[1765990185387,0.6829,86875.0,86862.0,0.01351176]
[1765990185587,0.6829,86873.0,86862.0,1.76e-06]
[1765990185765,0.6829,86869.0,86861.0,0.01351176]
[1765990186492,0.6829,86869.0,86862.0,0.01151251]
[1765990186688,0.00161,86873.0,86865.0,0.01151211]
[1765990186896,0.00161,86873.0,86861.0,0.25527632]
[1765990187106,0.00161,86873.0,86864.0,0.01151224]
[1765990187308,0.00161,86873.0,86867.0,0.01151185]
[1765990187466,0.01053934,86877.0,86867.0,0.01151185]
[1765990187669,0.01053934,86877.0,86869.0,0.24174294]
[1765990187867,0.0907,86879.0,86872.0,0.01151118]
[1765990188206,0.0907,86879.0,86868.0,0.01151171]
[1765990188207,0.0105405,86878.0,86868.0,0.01151171]
[1765990188585,0.0105405,86878.0,86870.0,0.01151145]
[1765990188784,0.0105405,86878.0,86871.0,0.01151132]
[1765990188964,0.0105405,86878.0,86870.0,0.24174026]
[1765990189189,0.0105405,86878.0,86869.0,0.01151158]
[1765990189511,0.0105405,86878.0,86873.0,0.23022065]
[1765990189739,0.0907,86883.0,86877.0,0.01151052]
[1765990189931,0.01054541,86882.0,86878.0,0.24171729]
[1765990190142,0.01054541,86882.0,86879.0,0.01151026]
[1765990190354,0.01054541,86882.0,86879.0,0.24171525]
[1765990190524,0.517,86896.0,86879.0,0.01151026]
[1765990190731,0.517,86896.0,86876.0,0.24372335]
[1765990190732,0.517,86886.0,86876.0,1.76e-06]
[1765990190911,0.69558,86884.0,86869.0,0.23023164]
[1765990191113,0.69558,86882.0,86863.0,0.01151238]
[1765990191371,0.69558,86877.0,86867.0,0.23023682]
[1765990191504,0.69558,86877.0,86869.0,0.01151158]
[1765990191711,0.78628,86887.0,86875.0,0.01151079]
[1765990191945,0.78628,86887.0,86874.0,0.01151092]
[1765990191946,0.01054641,86886.0,86874.0,0.01151092]
[1765990192103,0.0907,86884.0,86875.0,0.01351176]
[1765990192306,0.0907,86884.0,86876.0,0.01151065]
[1765990192725,0.0907,86884.0,86879.0,0.24171536]
[1765990192946,0.0907,86884.0,86881.0,0.01150999]
[1765990193145,0.69558,86883.0,86881.0,0.23019986]
[1765990193363,0.00161287,86886.0,86883.0,0.01150973]
[1765990193904,0.01852,86896.0,86885.0,0.24169863]
[1765990194218,0.00186576,86889.0,86880.0,0.01151012]
[1765990194563,0.00186576,86889.0,86882.0,0.01150986]
[1765990194763,0.00186576,86889.0,86880.0,0.01151012]
[1765990194961,0.00186576,86889.0,86879.0,3.89e-06]
[1765990195189,0.00186576,86889.0,86880.0,0.01151012]
[1765990195534,0.0907,86885.0,86875.0,0.01151644]
[1765990195723,0.0907,86885.0,86879.0,1.76e-06]
[1765990195936,0.517,86883.0,86865.0,0.01151211]
[1765990196105,0.69558,86882.0,86866.0,0.01852]
[1765990196305,0.69558,86882.0,86868.0,0.01151171]
[1765990196514,0.69558,86881.0,86869.0,0.01151158]
[1765990196829,0.09256576,86889.0,86880.0,0.01151012]
[1765990197158,0.001,86885.0,86880.0,0.01151012]
[1765990197395,0.09256576,86889.0,86884.0,0.2301898]
[1765990197620,0.09256576,86889.0,86884.0,0.01150959]
[1765990197819,0.09256576,86889.0,86879.0,0.23020265]
[1765990197820,0.00186576,86889.0,86881.0,0.23019972]
[1765990197933,0.00186576,86889.0,86884.0,0.01150959]
[1765990198145,0.00186576,86889.0,86881.0,0.01150999]
[1765990198351,0.00025289,86889.0,86879.0,0.01151026]
[1765990198567,0.00025289,86889.0,86881.0,0.01150999]
[1765990198781,0.00025289,86889.0,86865.0,0.01852]
[1765990198782,0.69558,86885.0,86865.0,0.01852]
[1765990198987,0.69558,86883.0,86865.0,0.01852]
[1765990199229,0.00025289,86889.0,86882.0,0.01150986]
[1765990199442,0.00025289,86889.0,86885.0,0.2416971]
[1765990199774,0.00025289,86889.0,86888.0,0.23018138]
[1765990200175,0.00025289,86889.0,86887.0,0.23018259]
[1765990200360,0.00025289,86889.0,86882.0,0.24170508]
[1765990200361,1.69558,86888.0,86864.0,0.01151224]
[1765990200493,0.01009818,86889.0,86851.0,0.0410584]
[1765990200494,0.78628,86879.0,86853.0,0.0115137]
[1765990200706,0.78628,86879.0,86847.0,0.51814176]
[1765990200707,0.0907,86877.0,86847.0,0.51814176]
[1765990200907,0.4378,86868.0,86859.0,0.01151291]
[1765990201113,0.517,86870.0,86856.0,0.0115133]
[1765990201114,0.69558,86869.0,86856.0,0.0115133]
[1765990201447,0.01351176,86879.0,86838.0,0.01852]
[1765990201448,0.7141,86883.0,86857.0,0.02732757]
[1765990201625,0.0907,86882.0,86870.0,0.01151145]
[1765990201825,0.0907,86882.0,86853.0,0.01852]
[1765990201826,0.0907,86873.0,86853.0,0.01852]
[1765990202225,2.89e-06,86889.0,86866.0,0.01351176]
[1765990202428,2.89e-06,86889.0,86886.0,0.2416947]
[1765990202635,2.89e-06,86889.0,86887.0,0.23018232]
[1765990202827,2.89e-06,86889.0,86888.0,0.05001839]
[1765990203765,0.05740223,86923.0,86888.0,0.05001839]
[1765990203766,0.10702729,86953.0,86924.0,0.0115043]
[1765990203955,0.01351176,86969.0,86921.0,0.01150469]
[1765990203956,0.02808641,86944.0,86921.0,0.01150469]
[1765990204214,0.01127453,86944.0,86922.0,0.01380548]
[1765990204354,0.01127453,86944.0,86921.0,0.24159697]
[1765990204355,0.00181287,86928.0,86921.0,0.24159697]
[1765990204555,0.00181287,86928.0,86922.0,0.23008926]
[1765990204759,0.0002,86928.0,86926.0,0.23007871]
[1765990204974,0.01852,86950.0,86931.0,0.23006752]
[1765990205209,0.01116477,86948.0,86938.0,0.01150245]
[1765990205419,0.01852,86951.0,86935.0,0.01150284]
[1765990205661,1.0,86953.0,86940.0,0.01150218]
[1765990205834,1.0,86953.0,86931.0,0.23006497]
[1765990205835,1.0,86953.0,86933.0,0.01150311]
[1765990206053,0.0907,86949.0,86931.0,0.01150337]
[1765990206275,0.0907,86949.0,86935.0,1.76e-06]
[1765990206475,0.69558,86939.0,86921.0,0.01150469]
[1765990206709,0.69558,86937.0,86907.0,0.23013034]
[1765990206854,0.0907,86927.0,86915.0,0.01150549]
[1765990207058,0.0907,86927.0,86909.0,0.24163053]
[1765990207059,0.0907,86927.0,86910.0,0.05001839]
[1765990207265,0.0907,86927.0,86910.0,0.01150615]
[1765990207487,0.78628,86919.0,86903.0,1.76e-06]
[1765990207692,0.7060557,86920.0,86887.0,0.01852]
[1765990207693,0.0907,86911.0,86887.0,0.01852]
[1765990208058,0.0907,86911.0,86882.0,0.01351176]
[1765990208059,0.1046,86912.0,86883.0,0.24170411]
[1765990208255,0.78628,86909.0,86884.0,0.01150959]
[1765990208464,0.7368,86904.0,86888.0,0.01150906]
[1765990208673,0.0907,86897.0,86880.0,0.01351176]
[1765990208810,0.0907,86895.0,86880.0,0.01351176]
[1765990209021,0.0907,86895.0,86880.0,0.02502188]
[1765990209205,0.78136,86895.0,86880.0,0.01311176]
[1765990209412,0.78136,86895.0,86873.0,0.01852]
[1765990209635,0.0907,86887.0,86869.0,0.01151158]
[1765990209842,0.0907,86885.0,86874.0,0.01151092]
[1765990210058,0.4664,86893.0,86879.0,0.01151026]
[1765990210263,0.4664,86893.0,86866.0,0.01351176]
[1765990210264,0.78136,86890.0,86875.0,0.01151079]
[1765990210469,0.78136,86890.0,86881.0,0.01150999]
[1765990210679,0.78136,86890.0,86880.0,0.01151012]
[1765990211085,0.78136,86890.0,86873.0,0.01151105]
[1765990211086,0.78297287,86890.0,86873.0,0.01151105]
[1765990211300,0.78297287,86890.0,86879.0,0.001]
[1765990211301,0.79836857,86890.0,86879.0,0.001]
[1765990211519,0.80639,86889.0,86879.0,0.001]
[1765990211719,0.80800287,86889.0,86879.0,0.001]
[1765990212144,0.80800287,86889.0,86858.0,0.01151304]
[1765990212145,0.0907,86887.0,86858.0,0.01151304]
[1765990212343,0.71569,86878.0,86863.0,1.76e-06]
[1765990212585,0.71569,86876.0,86858.0,0.23025935]
[1765990212820,0.71569,86876.0,86841.0,0.03096909]
[1765990212821,0.80639,86867.0,86841.0,0.03096909]
[1765990213024,0.80639,86867.0,86828.0,0.06158761]
[1765990213025,0.80639,86859.0,86834.0,0.2418388]
[1765990213271,0.80639,86859.0,86837.0,0.01151582]
[1765990213272,0.80800287,86859.0,86837.0,0.01151582]
[1765990213517,0.80800287,86859.0,86838.0,0.01151569]
[1765990213735,0.80800287,86859.0,86837.0,0.01151582]
[1765990213954,0.71569,86849.0,86828.0,0.01151702]
[1765990214162,0.71569,86849.0,86832.0,0.02502825]
[1765990214163,0.71569,86847.0,86832.0,0.02502825]
[1765990214363,0.71730287,86847.0,86832.0,0.02502825]
[1765990214567,0.71730287,86847.0,86825.0,0.23034784]
[1765990214568,1.0,86841.0,86812.0,0.03096909]
[1765990214823,0.01852,86840.0,86819.0,0.48522]
[1765990215021,0.01852,86840.0,86819.0,0.49673821]
[1765990215219,0.7060557,86830.0,86816.0,0.01151861]
[1765990215437,0.71569,86828.0,86807.0,0.24191551]
[1765990215638,0.0907,86825.0,86810.0,0.01151941]
[1765990215805,0.0907,86825.0,86804.0,0.23040249]
[1765990215806,0.3478,86825.0,86813.0,0.23037886]
[1765990216009,0.0907,86822.0,86819.0,0.01151821]
[1765990216284,0.80639,86822.0,86814.0,0.24189455]
[1765990216716,0.80639,86822.0,86812.0,0.01151914]
[1765990216717,0.0907,86822.0,86812.0,0.01151914]
[1765990216919,0.0907,86822.0,86804.0,0.24192303]
[1765990217135,0.0907,86822.0,86808.0,0.01151967]
[1765990217136,0.71569,86821.0,86808.0,0.01151967]
[1765990217354,0.71569,86821.0,86791.0,0.01351176]
[1765990217355,0.0907,86820.0,86799.0,0.01152087]
[1765990217570,1.11546078,86821.0,86797.0,1.13e-06]
[1765990217571,0.0907,86809.0,86797.0,1.13e-06]
[1765990217794,0.0907,86809.0,86792.0,0.23398889]
[1765990217795,0.0907,86804.0,86792.0,0.00355408]
[1765990217987,0.70689033,86802.0,86792.0,4.08e-06]
[1765990218155,0.71569,86796.0,86779.0,0.01152352]
[1765990218405,1.0,86798.0,86763.0,0.01152565]
[1765990218600,0.0907,86800.0,86743.0,0.0115283]
[1765990218601,0.80639,86772.0,86743.0,0.0115283]
[1765990218801,0.80639,86772.0,86728.0,0.0410584]
[1765990218802,0.0907,86765.0,86747.0,3.71e-06]
[1765990219003,0.0907,86765.0,86748.0,0.01152764]
[1765990219213,0.0907,86763.0,86744.0,0.01152817]
[1765990219383,0.0907,86763.0,86748.0,0.23055068]
[1765990219613,0.65784,86768.0,86751.0,0.01152724]
[1765990219786,0.65784,86768.0,86763.0,0.001]
[1765990219787,1.65784,86764.0,86763.0,0.001]
[1765990220063,1.0,86762.0,86749.0,0.01152751]
[1765990220235,0.01852,86772.0,86758.0,0.01152631]
[1765990220480,0.0907,86780.0,86764.0,0.01152551]
[1765990220739,0.0907,86780.0,86761.0,0.01152591]
[1765990220740,0.01852,86773.0,86761.0,0.01152591]
[1765990220998,0.01852,86773.0,86760.0,0.01152604]
[1765990221254,0.001,86764.0,86759.0,0.24204746]
[1765990221499,0.001,86764.0,86753.0,0.01351176]
[1765990221700,0.001,86764.0,86749.0,0.23054841]
[1765990221701,0.00261287,86764.0,86748.0,0.01152764]
[1765990221911,0.09331287,86764.0,86753.0,0.01152697]
[1765990222124,0.0907,86762.0,86748.0,0.01152764]
[1765990222352,0.0907,86762.0,86754.0,0.01152684]
[1765990222648,0.0907,86762.0,86751.0,0.01152724]
[1765990222918,0.0907,86762.0,86749.0,0.01152751]
[1765990223205,0.0907,86762.0,86750.0,0.01152737]
[1765990223206,0.10922,86762.0,86750.0,0.01152737]
[1765990223436,0.10922,86762.0,86745.0,0.01152804]
[1765990223437,0.58727287,86762.0,86744.0,0.01152817]
[1765990223680,0.55573,86751.0,86717.0,0.23063528]
[1765990223907,0.01856,86750.0,86739.0,0.01152883]
[1765990224118,0.01856,86749.0,86741.0,0.23056953]
[1765990224338,0.01856,86749.0,86744.0,0.01152817]
[1765990224556,0.0907,86759.0,86748.0,0.00139402]
[1765990224557,0.1668,86758.0,86748.0,0.00139402]
[1765990224745,0.0907,86757.0,86749.0,0.01152751]
[1765990224941,0.0907,86757.0,86744.0,0.71775176]
[1765990224942,0.0907,86757.0,86740.0,0.24210129]
[1765990225176,1.0,86756.0,86741.0,0.01152857]
[1765990225348,0.09231287,86757.0,86736.0,0.01152923]
[1765990225349,0.64643,86753.0,86736.0,0.01152923]
[1765990225552,0.64643,86753.0,86742.0,0.01152844]
[1765990225758,0.64643,86753.0,86738.0,0.23057729]
[1765990225960,1.64643,86753.0,86752.0,0.00126723]
[1765990226173,0.2,86753.0,86752.0,0.00126723]
[1765990226399,0.00161287,86757.0,86752.0,0.00126723]
[1765990226603,0.00161287,86757.0,86744.0,0.02503993]
[1765990226810,0.001,86753.0,86745.0,0.01152804]
[1765990227026,0.001,86753.0,86739.0,0.24210386]
[1765990227027,0.55573,86756.0,86739.0,0.01152883]
[1765990227280,0.55573,86756.0,86727.0,0.01351176]
[1765990227281,1.0,86753.0,86737.0,0.0091291]
[1765990227502,0.55447,86752.0,86731.0,0.0115299]
[1765990227765,1.26136033,86750.0,86733.0,0.01152963]
[1765990227988,0.01856,86749.0,86733.0,0.01152963]
[1765990228203,0.01856,86749.0,86732.0,0.01152976]
[1765990228413,0.01856,86749.0,86734.0,0.0115295]
[1765990228643,0.01856,86749.0,86729.0,0.23060128]
[1765990228644,0.55447,86747.0,86718.0,0.01153163]
[1765990228867,0.0907,86737.0,86722.0,0.01153109]
[1765990229070,0.0907,86737.0,86723.0,0.01153096]
[1765990229240,0.0907,86737.0,86724.0,0.01153083]
[1765990229427,0.0907,86737.0,86721.0,0.01153123]
[1765990229644,0.0907,86737.0,86717.0,0.01153176]
[1765990229645,1.0,86734.0,86716.0,0.01153189]
[1765990229967,0.01856,86738.0,86716.0,0.01153189]
[1765990229968,0.55447,86733.0,86720.0,0.01153136]
[1765990230162,0.55447,86733.0,86719.0,0.01153149]
[1765990230312,0.55447,86733.0,86717.0,0.01153176]
[1765990230513,0.55447,86733.0,86715.0,0.01153203]
[1765990230716,0.55447,86733.0,86707.0,0.01153309]
[1765990230717,0.79759033,86730.0,86707.0,0.01153309]
[1765990230967,1.0,86718.0,86706.0,0.01153322]
[1765990231165,1.0,86718.0,86708.0,0.01153296]
[1765990231365,1.0,86718.0,86706.0,0.24219666]
[1765990231366,0.56748,86719.0,86710.0,0.01153269]
[1765990231574,0.01856,86719.0,86706.0,0.01153322]
[1765990231810,0.01856,86719.0,86710.0,0.01153269]
[1765990231991,0.01856,86719.0,86709.0,0.01153282]
[1765990232163,1.0,86719.0,86711.0,0.01153256]
[1765990232380,0.3114,86719.0,86713.0,0.01153229]
[1765990232597,0.01856,86722.0,86713.0,0.01153229]
[1765990232750,1.0,86728.0,86718.0,0.01153163]
[1765990232951,0.10926,86727.0,86715.0,0.23063962]
[1765990233191,0.001,86719.0,86709.0,0.01153282]
[1765990233372,0.001,86719.0,86713.0,0.01153229]
[1765990233709,0.001,86719.0,86711.0,0.01153256]
[1765990233908,0.10926,86727.0,86711.0,0.01153256]
[1765990233909,0.01856,86727.0,86711.0,0.01153256]
[1765990234210,0.56748,86726.0,86713.0,0.24217748]
[1765990234410,0.002,86728.0,86717.0,0.01153176]
[1765990234572,0.002,86728.0,86705.0,8.2e-07]
[1765990234573,0.0907,86723.0,86705.0,8.2e-07]
[1765990234770,0.01856,86725.0,86712.0,0.01153242]
[1765990235098,0.02017287,86725.0,86716.0,0.23063717]
[1765990235316,0.00161287,86725.0,86714.0,0.23064326]
[1765990235501,0.02017287,86725.0,86716.0,0.01153189]
[1765990235700,0.02017287,86725.0,86718.0,0.2306316]
[1765990235901,0.29773,86735.0,86718.0,0.24216425]
[1765990235902,0.001,86719.0,86718.0,0.24216425]
[1765990236238,0.01856,86727.0,86711.0,0.23065008]
[1765990236397,0.0907,86724.0,86711.0,0.24218264]
[1765990236598,0.0907,86724.0,86704.0,0.23066878]
[1765990236599,0.0907,86720.0,86705.0,0.01153336]
[1765990236816,0.36858,86720.0,86709.0,0.01153282]
[1765990237006,1.13154758,86720.0,86702.0,0.01153375]
[1765990237331,0.0907,86719.0,86708.0,0.01153296]
[1765990237557,0.09231287,86719.0,86704.0,0.01153349]
[1765990237761,0.37019287,86719.0,86706.0,0.01153322]
[1765990238139,0.37019287,86719.0,86705.0,0.24027797]
[1765990238355,0.37019287,86719.0,86704.0,0.01153349]
[1765990238589,0.00161287,86719.0,86716.0,0.01153189]
[1765990239287,0.01856,86723.0,86716.0,0.01153189]
[1765990239498,0.001,86719.0,86715.0,0.01153203]
[1765990239705,0.001,86719.0,86714.0,0.01153216]
[1765990239706,0.001,86719.0,86707.0,0.01153309]
[1765990239935,0.001,86719.0,86710.0,0.23065277]
[1765990240129,0.001,86719.0,86708.0,0.01153296]
[1765990240338,0.01856,86723.0,86697.0,0.0001]
[1765990240339,0.27788,86722.0,86697.0,0.0001]
[1765990240536,0.01856,86723.0,86663.0,0.46155572]
[1765990240537,1.0,86705.0,86681.0,0.01153655]
[1765990240788,0.25454,86699.0,86676.0,0.01153721]
[1765990241079,1.03923471,86700.0,86684.0,0.23072176]
[1765990241080,0.25199,86697.0,86684.0,0.23072176]
[1765990241248,0.01856,86696.0,86686.0,0.01153588]
[1765990241607,1.03923471,86710.0,86691.0,0.01153522]
[1765990241782,0.1868,86701.0,86691.0,0.01153522]
[1765990241990,0.1868,86701.0,86692.0,0.01153508]
[1765990242145,0.1868,86701.0,86690.0,0.24224197]
[1765990242329,1.03923471,86710.0,86692.0,0.01153508]
[1765990242330,0.0907,86703.0,86692.0,0.01153508]
[1765990242537,0.0907,86705.0,86682.0,0.01153642]
[1765990242781,0.0907,86701.0,86684.0,0.01351176]
[1765990242975,0.0907,86697.0,86688.0,0.01153562]
[1765990243351,0.0907,86697.0,86687.0,0.01153575]
[1765990243352,0.09231287,86697.0,86687.0,0.01153575]
[1765990243553,0.09231287,86697.0,86688.0,0.24224806]
[1765990243969,0.09231287,86697.0,86688.0,0.01153562]
[1765990244173,0.00161287,86697.0,86690.0,0.01153535]
[1765990244602,0.00161287,86697.0,86692.0,0.23070134]
[1765990244807,0.00161287,86697.0,86693.0,0.01153495]
[1765990245007,0.00161287,86697.0,86689.0,0.24224445]
[1765990245008,0.00161287,86697.0,86696.0,0.00069773]
[1765990245786,0.00261287,86697.0,86696.0,0.00069773]
[1765990245988,0.00261287,86697.0,86679.0,0.01153681]
[1765990245989,0.0907,86696.0,86679.0,0.01153681]
[1765990246188,0.0907,86696.0,86682.0,0.01153642]
[1765990246376,0.0907,86696.0,86688.0,0.00025377]
[1765990246581,0.0907,86696.0,86690.0,0.01153535]
[1765990246582,1.0,86693.0,86690.0,0.01153535]
[1765990246843,0.00161287,86697.0,86688.0,3.77e-06]
[1765990246844,2.87e-06,86697.0,86688.0,3.77e-06]
[1765990247023,0.00100287,86697.0,86688.0,3.77e-06]
[1765990247636,1.0,86696.0,86688.0,3.77e-06]
[1765990247805,0.9538,86696.0,86688.0,3.77e-06]
[1765990248007,0.00100287,86697.0,86688.0,3.77e-06]
[1765990248395,2.87e-06,86697.0,86688.0,3.77e-06]
[1765990249033,0.001,86693.0,86688.0,3.77e-06]
[1765990249806,2.87e-06,86697.0,86688.0,3.77e-06]
[1765990250011,1.0,86696.0,86688.0,3.77e-06]
[1765990250790,0.01153469,86695.0,86688.0,3.77e-06]
[1765990251015,1.0,86694.0,86688.0,3.77e-06]
[1765990251207,0.0907,86695.0,86688.0,3.77e-06]
[1765990251208,1.41014,86692.0,86688.0,3.77e-06]
[1765990251490,1.0,86679.0,86658.0,0.51947961]
[1765990251719,1.0,86679.0,86658.0,0.71705]
[1765990251867,1.0,86679.0,86659.0,0.50794]
[1765990252270,1.03923471,86670.0,86659.0,0.50794]
[1765990252471,1.03923471,86670.0,86657.0,0.01153974]
[1765990252472,0.8691,86669.0,86657.0,0.01153974]
[1765990252680,0.8691,86669.0,86656.0,0.01153988]
[1765990252949,0.01856,86682.0,86671.0,0.50794]
[1765990253147,0.001,86679.0,86671.0,0.50794]
[1765990253302,0.0907,86683.0,86673.0,0.01153761]
[1765990253506,1.03923471,86690.0,86675.0,0.50794]
[1765990253710,1.0,86689.0,86675.0,0.50794]
[1765990253918,0.69412,86686.0,86653.0,0.01154028]
[1765990254076,1.03923471,86670.0,86657.0,0.50794]
[1765990254275,1.0,86669.0,86657.0,0.50794]
[1765990254844,0.001,86669.0,86656.0,0.00161]
[1765990254989,1.0,86669.0,86656.0,0.00161]
[1765990255388,1.0,86669.0,86651.0,0.71745]
[1765990255389,0.0907,86668.0,86651.0,0.0004]
[1765990255599,1.0,86663.0,86651.0,0.0004]
[1765990255786,0.02865158,86675.0,86659.0,0.50794]